bitfinex/quotes_ETHUSD_20250526
["timestamp","ask_amount","ask_price","bid_price","bid_amount"]
[1748294548010,0.1,2558.9,2558.8,15.30762057]
[1748294550994,0.1,2558.9,2558.8,20.02762057]
[1748294555287,0.1,2558.9,2558.8,19.41722056]
[1748294558522,0.1,2558.9,2558.8,23.32530247]
[1748294558708,0.8624,2559.9,2558.9,11.90785672]
[1748294559036,0.8624,2559.9,2559.6,4.10161333]
[1748294559182,0.8624,2559.9,2559.8,4.10161333]
[1748294559527,0.1,2559.9,2559.8,4.10161333]
[1748294559686,0.1,2559.9,2559.8,12.10161333]
[1748294560186,0.1,2559.9,2559.8,12.47212056]
[1748294563321,0.1,2559.9,2559.8,8.37050723]
[1748294564119,0.8725,2559.9,2559.8,8.37050723]
[1748294565024,0.8725,2559.9,2559.8,0.37050723]
[1748294566199,0.1,2559.9,2559.8,4.10161333]
[1748294571214,0.1,2559.9,2559.8,12.10161333]
[1748294572131,0.1,2559.9,2559.8,12.47365139]
[1748294587768,0.1,2559.9,2559.8,8.37203806]
[1748294595315,0.1,2559.9,2559.8,8.8375083]
[1748294597033,0.1,2559.9,2559.8,8.37203806]
[1748294598695,0.1,2559.9,2559.8,9.17883806]
[1748294601202,0.1,2559.9,2559.8,13.90121815]
[1748294602239,0.1,2559.9,2559.8,8.99280482]
[1748294602441,0.1,2559.9,2559.8,0.99280482]
[1748294602605,0.9277,2559.9,2559.8,0.99280482]
[1748294603219,0.9277,2559.9,2559.8,0.37203806]
[1748294615730,0.9277,2559.9,2559.3,8.4657063]
[1748294615907,0.801,2559.7,2559.3,8.4657063]
[1748294617336,0.801,2559.7,2559.4,0.37273412]
[1748294618532,0.801,2559.7,2559.2,1.9433234]
[1748294618722,1.2815,2559.7,2559.2,6.04493673]
[1748294618923,0.791,2559.6,2559.2,6.04493673]
[1748294620146,0.791,2559.6,2559.3,0.37247934]
[1748294621209,0.791,2559.6,2559.2,6.04493673]
[1748294622956,0.791,2559.6,2559.2,4.10161333]
[1748294631659,0.791,2559.6,2559.3,0.37216137]
[1748294632881,0.791,2559.6,2559.2,4.10161333]
[1748294635574,0.791,2559.6,2559.3,0.3723951]
[1748294637066,0.791,2559.6,2559.2,4.10161333]
[1748294639175,0.791,2559.6,2559.3,0.37254589]
[1748294640478,0.791,2559.6,2559.2,4.10161333]
[1748294643081,0.791,2559.6,2559.3,0.37284091]
[1748294644179,0.791,2559.6,2559.4,0.37284091]
[1748294645582,0.791,2559.6,2559.5,0.37284091]
[1748294646493,4.696,2559.6,2559.5,0.37284091]
[1748294646664,5.578,2559.6,2559.5,0.37284091]
[1748294650492,6.128,2559.6,2559.5,0.37284091]
[1748294651288,6.128,2559.6,2558.9,0.4657063]
[1748294651466,6.128,2559.6,2558.9,8.4657063]
[1748294651793,6.128,2559.6,2559.0,4.10161333]
[1748294651966,6.128,2559.6,2559.1,2.99591641]
[1748294653897,6.128,2559.6,2558.9,4.11950079]
[1748294654392,0.55,2559.0,2558.8,0.4657063]
[1748294654578,9.3332,2558.9,2558.8,0.4657063]
[1748294655467,0.7542,2558.7,2557.9,8.0]
[1748294655792,0.7542,2558.7,2558.3,1.9433234]
[1748294656201,0.55,2558.6,2558.3,1.9433234]
[1748294656501,4.6592,2558.5,2558.3,1.9433234]
[1748294657839,0.7542,2558.4,2558.3,1.9433234]
[1748294658030,1.3042,2558.4,2558.3,1.9433234]
[1748294660532,0.55,2558.3,2557.3,8.0]
[1748294660733,4.8782,2558.2,2557.2,4.89160079]
[1748294661733,4.8782,2558.2,2557.5,4.11950079]
[1748294669544,4.124,2558.2,2557.5,4.11950079]
[1748294669874,0.7696,2557.9,2557.0,0.8194]
[1748294670083,3.907,2557.8,2557.0,0.8194]
[1748294670279,4.42966,2557.8,2557.0,0.8194]
[1748294670882,4.42966,2557.8,2557.1,4.21950079]
[1748294671058,8.8016,2557.9,2557.5,4.11950079]
[1748294671711,8.032,2558.1,2557.5,4.11950079]
[1748294672577,4.125,2558.4,2557.9,4.11950079]
[1748294672879,5.39146,2558.4,2557.9,4.11950079]
[1748294673096,4.125,2558.4,2557.9,4.11950079]
[1748294675699,8.5396,2558.6,2557.9,4.11950079]
[1748294675858,12.6646,2558.6,2557.9,4.11950079]
[1748294676062,16.5716,2558.6,2557.9,4.11950079]
[1748294678058,8.8016,2558.6,2557.9,4.11950079]
[1748294680611,4.8946,2558.6,2557.9,4.11950079]
[1748294680893,3.907,2558.5,2557.9,4.11950079]
[1748294682596,8.8016,2558.6,2557.9,4.11950079]
[1748294682899,8.8016,2558.6,2558.0,0.7956]
[1748294683202,8.032,2558.6,2558.0,0.7956]
[1748294685362,4.125,2558.6,2558.1,0.7956]
[1748294686763,0.7632,2558.9,2558.4,8.0]
[1748294686958,0.7632,2558.8,2557.8,1.2752063]
[1748294687165,0.92783,2558.7,2557.8,1.2752063]
[1748294687365,0.7632,2558.6,2557.8,1.2752063]
[1748294687681,0.04885995,2558.5,2557.8,1.2752063]
[1748294688068,3.907,2558.4,2557.8,0.8095]
[1748294700573,0.7867,2558.3,2557.5,0.4657063]
[1748294700890,0.7867,2558.1,2557.5,0.4657063]
[1748294701219,0.87897008,2558.7,2558.1,0.8176]
[1748294701220,0.7867,2558.7,2558.1,0.8176]
[1748294702402,1.25607,2558.7,2558.1,0.8176]
[1748294703928,0.7867,2558.7,2558.1,0.8176]
[1748294707832,0.7867,2558.7,2557.9,1.2325063]
[1748294707994,1.314,2558.6,2557.9,0.4657063]
[1748294709031,1.314,2558.6,2557.7,1.2325063]
[1748294709235,1.8361,2558.6,2557.7,1.2325063]
[1748294712436,5.9591,2558.6,2557.7,1.2325063]
[1748294714013,5.9591,2558.6,2557.7,9.2325063]
[1748294714209,5.437,2558.6,2557.8,4.11950079]
[1748294714525,4.887,2558.6,2558.0,4.11950079]
[1748294715615,4.123,2558.6,2558.0,4.11950079]
[1748294724546,4.123,2558.6,2557.9,9.2177063]
[1748294729358,0.75,2558.5,2557.9,8.4657063]
[1748294729934,0.75,2558.5,2557.8,0.4657063]
[1748294736649,0.75,2558.5,2557.7,8.4657063]
[1748294736840,0.7847,2558.3,2557.7,8.4657063]
[1748294737653,0.7847,2558.3,2557.7,8.0]
[1748294737817,0.83356493,2558.3,2557.7,8.0]
[1748294738850,0.04886494,2558.2,2557.7,8.0]
[1748294739051,0.7847,2558.1,2557.7,8.0]
[1748294750180,4.123,2558.6,2557.9,8.0]
[1748294750181,4.7382,2558.5,2557.9,8.0]
[1748294752450,0.8059,2558.4,2557.9,8.0]
[1748294761802,0.8059,2558.4,2558.0,4.11950079]
[1748294762096,4.9406,2558.6,2558.2,4.11950079]
[1748294762263,4.9406,2558.6,2558.0,4.11950079]
[1748294766195,4.9406,2558.6,2558.1,8.0]
[1748294775987,4.9406,2558.6,2558.2,2.99780142]
[1748294782635,4.123,2558.6,2558.0,11.46350772]
[1748294782930,0.8204,2558.5,2558.0,11.46350772]
[1748294783092,0.86926075,2558.5,2558.0,0.4657063]
[1748294783295,0.8204,2558.4,2558.0,0.4657063]
[1748294783830,0.8204,2558.4,2557.8,3.46350772]
[1748294784029,0.8204,2558.4,2557.8,0.4657063]
[1748294784195,0.8204,2558.3,2557.8,0.4657063]
[1748294784595,0.8204,2558.3,2557.8,3.46350772]
[1748294785344,0.8204,2558.3,2557.8,2.99780142]
[1748294785934,0.8204,2558.3,2557.7,4.12302049]
[1748294786246,0.8204,2558.3,2558.1,4.12302049]
[1748294786396,0.8204,2558.5,2558.1,4.12302049]
[1748294794408,0.8204,2558.5,2558.1,4.58872679]
[1748294794852,0.8204,2558.5,2558.2,8.0]
[1748294797448,4.121,2558.8,2558.2,8.0]
[1748294797617,4.9159,2558.8,2558.2,8.0]
[1748294797816,0.7949,2558.8,2558.2,8.0]
[1748294799215,0.7949,2558.8,2558.2,8.4657063]
[1748294803350,4.121,2559.0,2558.4,8.0]
[1748294803669,0.766,2559.0,2558.4,8.0]
[1748294803856,4.673,2559.0,2558.4,8.0]
[1748294804254,4.673,2559.0,2558.4,8.4657063]
[1748294804661,0.766,2559.0,2558.4,8.4657063]
[1748294804828,4.673,2559.0,2558.4,8.4657063]
[1748294805871,0.766,2559.0,2558.5,4.12302049]
[1748294806162,4.121,2559.2,2558.7,4.12302049]
[1748294806163,4.9189,2559.2,2558.7,4.12302049]
[1748294806323,8.8259,2559.2,2558.7,4.12302049]
[1748294806987,8.8259,2559.2,2558.7,4.50691474]
[1748294809177,4.9189,2559.2,2558.7,4.50691474]
[1748294809330,0.8198,2559.5,2558.8,8.7558]
[1748294809671,0.8198,2559.5,2558.9,4.12302049]
[1748294811546,0.7906,2559.8,2558.9,4.12302049]
[1748294811740,0.7906,2559.8,2559.0,0.7895]
[1748294812075,3.906,2559.7,2559.0,0.7895]
[1748294813963,0.7906,2559.8,2559.0,8.7895]
[1748294814165,4.6966,2559.8,2559.0,8.7895]
[1748294815594,4.6966,2559.8,2559.1,0.7583]
[1748294816455,3.906,2559.8,2559.2,8.0]
[1748294816794,3.906,2559.8,2559.3,0.7909]
[1748294817386,4.22,2559.9,2559.3,0.7909]
[1748294817591,8.126,2559.9,2559.3,0.7909]
[1748294818328,4.22,2559.9,2559.3,0.7909]
[1748294818531,8.126,2559.9,2559.3,0.7909]
[1748294818688,8.126,2559.9,2559.4,8.7777]
[1748294819915,4.22,2559.9,2559.4,8.7777]
[1748294820698,0.1,2559.9,2559.8,8.7777]
[1748294823904,0.1,2559.9,2559.8,12.87555283]
[1748294824993,0.1,2559.9,2559.8,12.68425519]
[1748294827348,0.1,2559.9,2559.8,13.23425519]
[1748294828652,0.1,2560.9,2560.8,8.0]
[1748294829947,0.1,2560.9,2560.8,8.8152]
[1748294830710,0.1,2560.9,2560.8,9.20267828]
[1748294831646,0.1,2560.9,2560.8,13.32569877]
[1748294831945,0.1,2560.9,2560.8,9.20267828]
[1748294832451,0.1,2560.9,2560.8,13.32569877]
[1748294832823,0.1,2560.9,2560.8,17.78072844]
[1748294833150,0.1,2560.9,2560.8,9.75267828]
[1748294833448,0.1,2560.9,2560.8,17.78072844]
[1748294833854,0.1,2561.9,2561.8,8.0]
[1748294838157,0.1,2561.9,2561.8,12.6655]
[1748294849349,0.1,2561.9,2561.8,16.7755]
[1748294850291,0.8564,2562.9,2561.8,16.7755]
[1748294850587,0.8564,2562.9,2562.2,8.0]
[1748294853306,0.8564,2562.9,2562.5,4.12302049]
[1748294853592,0.8564,2562.9,2562.3,4.12302049]
[1748294853892,0.1,2562.9,2562.4,0.8265]
[1748294855257,0.1,2562.9,2562.6,8.0]
[1748294855850,0.1,2562.9,2562.8,8.0]
[1748294856051,0.1,2563.4,2562.8,8.0]
[1748294856284,0.1,2563.4,2563.2,8.0]
[1748294858799,0.1,2563.4,2563.3,13.47572436]
[1748294859004,0.1,2563.4,2563.3,12.88672049]
[1748294859299,0.1,2563.4,2563.3,16.78672049]
[1748294859484,0.1,2563.4,2563.3,12.12302049]
[1748294861094,0.1,2563.4,2563.3,12.87772049]
[1748294864358,0.1,2563.4,2563.1,0.4657063]
[1748294864563,0.7939,2563.3,2563.1,0.4657063]
[1748294865502,0.7939,2563.3,2562.5,8.0]
[1748294865704,0.7939,2563.3,2562.4,3.899]
[1748294865900,0.7939,2563.3,2562.5,4.12302049]
[1748294866806,0.7939,2563.3,2562.4,8.0]
[1748294867895,0.7939,2563.3,2562.4,8.39439112]
[1748294871014,0.7939,2563.3,2562.4,0.39439112]
[1748294871221,0.7939,2563.3,2562.2,0.4657063]
[1748294871576,0.7939,2563.3,2562.2,8.4657063]
[1748294871822,0.7774,2563.2,2562.2,8.4657063]
[1748294872023,0.7774,2563.2,2562.2,0.4657063]
[1748294872183,0.7774,2563.2,2562.2,8.4657063]
[1748294872380,0.7774,2563.2,2562.2,0.4657063]
[1748294872584,0.7774,2563.0,2562.1,4.12302049]
[1748294872890,0.7774,2563.0,2562.2,8.0]
[1748294874329,0.7774,2563.0,2562.2,8.39524951]
[1748294884118,0.7774,2563.0,2562.5,4.12302049]
[1748294884318,0.7774,2563.0,2562.6,8.0]
[1748294887737,0.7774,2563.0,2562.6,8.39805748]
[1748294891383,0.7774,2563.0,2562.6,0.39805748]
[1748294891582,0.7774,2563.0,2562.5,4.12302049]
[1748294892152,0.7774,2563.0,2562.5,4.516053]
[1748294892585,0.7774,2563.0,2562.6,8.0]
[1748294892783,0.1,2563.4,2562.6,8.0]
[1748294892784,0.7758,2563.3,2562.8,8.0]
[1748294893136,0.7758,2563.3,2562.9,4.12302049]
[1748294894253,0.7758,2563.3,2562.6,0.4657063]
[1748294894481,0.7758,2563.3,2562.6,8.4657063]
[1748294903577,3.899,2563.2,2562.4,0.62076676]
[1748294903793,3.899,2563.2,2561.1,0.1]
[1748294903794,8.55,2562.6,2560.4,3.0873241]
[1748294903977,8.55,2561.9,2561.6,0.36902729]
[1748294904178,4.112,2562.2,2561.6,0.36902729]
[1748294904179,0.55,2561.7,2561.6,0.36902729]
[1748294904487,3.899,2561.7,2561.6,0.36902729]
[1748294904813,5.2252,2561.7,2561.6,0.36902729]
[1748294905018,6.18532,2561.7,2561.6,0.36902729]
[1748294905519,0.7762,2561.6,2560.5,3.65952598]
[1748294905679,0.7762,2561.6,2560.5,11.65952598]
[1748294905879,0.82500775,2561.6,2560.5,11.65952598]
[1748294906080,0.82500775,2561.6,2560.5,3.65952598]
[1748294906384,0.7762,2561.6,2560.5,3.65952598]
[1748294907010,0.7762,2561.6,2560.6,8.0]
[1748294907174,0.7762,2561.4,2560.6,8.0]
[1748294909529,0.7762,2561.4,2560.5,1.56302996]
[1748294910025,0.8266,2561.3,2560.5,1.56302996]
[1748294912398,0.8266,2561.3,2560.3,12.11457661]
[1748294914529,0.8754129,2561.3,2560.3,12.11457661]
[1748294915497,0.8266,2561.3,2560.3,12.11457661]
[1748294922824,4.7286,2561.3,2560.5,4.11457661]
[1748294924344,4.7286,2561.3,2560.3,12.11457661]
[1748294924511,0.7537,2561.2,2560.3,12.11457661]
[1748294935063,0.7537,2561.2,2560.3,8.0]
[1748294935258,0.45557,2561.2,2560.3,8.0]
[1748294935465,0.7662,2561.1,2560.3,8.0]
[1748294940368,0.7662,2561.1,2560.1,12.53257661]
[1748294940369,0.7662,2561.1,2560.1,0.1]
[1748294940542,0.7901,2560.9,2560.1,0.1]
[1748294941167,0.7901,2560.8,2560.1,0.1]
[1748294941732,1.31441,2560.8,2560.1,0.1]
[1748294941931,4.6931,2560.8,2560.1,0.1]
[1748294942166,0.7901,2560.8,2560.1,0.1]
[1748294945451,0.7901,2560.8,2560.2,4.11457661]
[1748294945647,0.7901,2560.8,2560.4,4.11457661]
[1748294957766,0.7901,2560.8,2560.2,12.11457661]
[1748294960796,0.8255,2561.4,2560.8,8.0]
[1748294961119,0.8255,2561.4,2560.9,4.11457661]
[1748294961660,0.8255,2561.4,2561.0,0.03904157]
[1748294962000,0.8255,2561.4,2560.8,8.7746]
[1748294962765,0.8255,2561.9,2561.1,4.11457661]
[1748294962968,0.8255,2561.9,2561.2,8.0]
[1748294964086,1.96661571,2562.0,2561.4,8.0]
[1748294964286,1.96661571,2562.0,2561.6,8.0]
[1748294965092,1.96661571,2562.0,2561.7,0.8024]
[1748294965297,1.96661571,2562.0,2561.4,9.27197661]
[1748294965588,0.8287,2562.3,2561.4,9.27197661]
[1748294966500,0.8287,2562.3,2561.2,5.38192078]
[1748294966722,0.8287,2562.2,2561.2,8.46494417]
[1748294967399,0.8287,2562.2,2561.2,0.46494417]
[1748294967600,0.8287,2562.2,2561.1,12.355]
[1748294967802,0.7704,2562.0,2561.1,12.355]
[1748294968589,0.7704,2562.0,2561.1,8.0]
[1748294968885,0.7704,2562.0,2561.1,12.355]
[1748294969787,0.7704,2562.0,2561.1,8.0]
[1748294973429,4.6724,2562.0,2561.1,8.0]
[1748294973638,0.51667277,2561.9,2561.1,8.0]
[1748294975229,0.7582,2561.8,2560.7,12.81894417]
[1748294975800,0.7582,2561.8,2560.7,12.354]
[1748294976529,0.7582,2561.8,2560.7,8.0]
[1748294977936,0.7582,2561.8,2560.7,12.354]
[1748294978711,0.7582,2561.8,2560.7,8.0]
[1748294979035,0.7582,2561.8,2560.8,4.11457661]
[1748294990054,0.7582,2561.8,2560.6,0.46494417]
[1748294990350,0.804,2561.6,2560.7,0.46494417]
[1748294991222,0.804,2561.6,2560.6,4.57952078]
[1748294997637,0.804,2561.6,2560.7,0.46494417]
[1748295001667,8.0,2561.8,2560.7,0.46494417]
[1748295001668,0.7646,2561.4,2560.7,0.46494417]
[1748295002370,0.7646,2561.4,2560.5,0.62203062]
[1748295002371,0.7646,2561.4,2560.5,0.46494417]
[1748295003481,0.7646,2561.4,2560.4,8.46494417]
[1748295005977,0.7646,2561.4,2560.4,8.0]
[1748295009178,0.7646,2561.4,2560.3,0.46494417]
[1748295009354,0.7646,2561.4,2560.4,8.0]
[1748295011679,0.7646,2561.4,2560.5,4.11457661]
[1748295019665,0.8047,2561.3,2560.5,4.11457661]
[1748295024492,0.8047,2561.3,2560.8,8.0]
[1748295025360,0.8047,2561.3,2560.9,0.03904448]
[1748295026360,0.8047,2561.3,2560.9,0.03904458]
[1748295026904,0.8047,2561.3,2560.8,8.0]
[1748295029411,0.8047,2561.3,2560.9,0.0390446]
[1748295030306,0.8047,2561.3,2560.8,8.0]
[1748295034011,0.8047,2561.3,2560.9,2.99122172]
[1748295043196,0.8047,2561.3,2560.7,0.46494417]
[1748295043395,0.8047,2561.3,2560.9,8.0]
[1748295043921,0.8047,2561.3,2560.9,9.14561659]
[1748295048038,0.8047,2561.3,2561.0,2.99122172]
[1748295054440,0.8223,2562.0,2561.0,2.99122172]
[1748295054742,0.8223,2561.8,2561.0,2.99122172]
[1748295060034,0.8223,2561.8,2560.9,0.46494417]
[1748295060354,0.8164,2561.6,2560.9,3.45616589]
[1748295061553,0.8164,2561.6,2560.9,2.99122172]
[1748295075981,0.8164,2561.6,2561.1,2.99122172]
[1748295077884,1.0,2561.5,2561.1,2.99122172]
[1748295080600,1.0,2561.5,2561.3,2.99122172]
[1748295080759,1.0,2561.5,2561.4,0.29912217]
[1748295081476,1.0,2561.5,2561.4,8.29912217]
[1748295086793,1.0,2561.5,2561.4,9.13172217]
[1748295086977,1.0,2561.5,2561.4,17.1958371]
[1748295087177,0.88898,2561.5,2561.4,17.1958371]
[1748295089171,0.82,2562.4,2561.8,0.7984]
[1748295089395,0.82,2562.4,2562.2,8.0]
[1748295089988,0.82,2562.7,2562.3,10.99122172]
[1748295090209,0.82,2562.7,2562.4,8.0]
[1748295090379,0.82,2562.7,2562.5,2.99122172]
[1748295091886,0.82,2562.7,2562.4,0.19780327]
[1748295092212,0.82,2562.7,2562.3,8.00896185]
[1748295092697,0.1,2562.9,2562.6,8.0]
[1748295092898,0.1,2562.9,2562.7,0.03901624]
[1748295093517,0.1,2562.9,2562.8,8.0]
[1748295100816,0.1,2562.9,2562.8,11.9]
[1748295102420,0.1,2562.9,2562.6,9.21493612]
[1748295102619,0.8715,2562.9,2562.6,12.49549797]
[1748295103186,0.8715,2562.9,2562.6,8.0]
[1748295105828,0.8715,2562.9,2562.2,4.10796185]
[1748295106008,0.8715,2562.9,2562.3,8.0]
[1748295106201,0.8715,2562.9,2562.2,4.10796185]
[1748295106598,0.8715,2562.9,2562.3,8.0]
[1748295107222,0.8715,2562.9,2562.1,4.72]
[1748295107627,0.8715,2562.9,2562.4,4.10796185]
[1748295108021,0.8715,2562.9,2562.2,12.10796185]
[1748295131918,0.8715,2562.9,2562.4,2.98773404]
[1748295135055,0.8715,2562.9,2562.2,8.46309911]
[1748295135056,0.8715,2562.9,2562.6,2.98773404]
[1748295138021,0.8715,2562.9,2562.5,8.0]
[1748295144463,0.1,2562.9,2562.8,12.10755038]
[1748295146499,0.1,2562.9,2562.8,12.92425038]
[1748295147760,0.1,2562.9,2562.8,13.38734949]
[1748295150008,0.1,2562.9,2562.8,12.92425038]
[1748295152266,0.1,2562.9,2562.8,17.37623258]
[1748295153280,0.1,2563.4,2563.3,12.10755038]
[1748295154409,0.1,2563.4,2563.3,12.49966824]
[1748295154611,0.1,2563.4,2563.3,16.40088932]
[1748295154908,0.1,2563.4,2563.3,12.49966824]
[1748295155975,0.1,2563.4,2563.3,13.30246824]
[1748295157278,0.1,2563.4,2563.3,8.39211786]
[1748295157479,0.1,2563.4,2563.3,12.49966824]
[1748295159914,0.1,2563.4,2563.3,12.10755038]
[1748295163585,0.1,2563.4,2563.3,8.0]
[1748295163919,0.1,2563.4,2563.3,12.89065038]
[1748295164124,0.1,2563.4,2563.3,16.79187146]
[1748295164287,0.1,2563.4,2563.3,12.89065038]
[1748295164685,0.1,2563.4,2563.3,13.2827415]
[1748295164905,0.1,2563.4,2563.3,17.18396258]
[1748295165099,0.1,2563.4,2563.3,13.2827415]
[1748295165289,0.1,2563.4,2563.3,17.18396258]
[1748295167300,0.1,2563.9,2563.5,3.90085186]
[1748295167490,0.1,2563.9,2563.8,12.10755038]
[1748295171456,0.1,2563.9,2563.8,12.87165038]
[1748295171637,0.8131,2564.6,2563.9,8.0]
[1748295171809,0.8131,2564.6,2564.3,8.0]
[1748295172011,0.8131,2564.6,2563.9,8.0]
[1748295177960,0.8131,2564.6,2563.7,12.10755038]
[1748295181056,0.8131,2564.6,2563.6,0.46309911]
[1748295181364,0.781,2564.4,2563.6,0.46309911]
[1748295181570,0.781,2564.2,2563.6,0.46309911]
[1748295181931,0.781,2564.2,2563.2,4.57064949]
[1748295182259,0.781,2564.2,2563.3,8.0]
[1748295188076,0.781,2564.2,2563.1,8.0]
[1748295188279,0.5167855,2564.1,2563.1,8.0]
[1748295188450,0.7591,2564.0,2563.1,8.0]
[1748295189501,0.7591,2564.0,2562.9,8.46309911]
[1748295189669,0.7591,2564.0,2562.9,12.57064949]
[1748295190411,0.7591,2564.0,2562.9,12.10755038]
[1748295199472,0.7591,2564.0,2562.8,0.46309911]
[1748295199473,0.7733,2563.8,2562.8,0.46309911]
[1748295199882,0.7733,2563.8,2562.8,4.57064949]
[1748295200403,0.7733,2563.8,2562.9,8.0]
[1748295200805,4.7223,2563.7,2562.9,8.0]
[1748295201006,1.29653,2563.6,2562.9,8.0]
[1748295201207,0.7853,2563.5,2562.9,8.0]
[1748295202865,0.7853,2563.5,2562.5,10.41303201]
[1748295203071,0.7853,2563.3,2562.5,2.41303201]
[1748295204005,0.7853,2563.3,2562.5,1.9499329]
[1748295204197,0.7853,2563.3,2562.4,12.10755038]
[1748295208313,0.7853,2563.3,2562.6,4.10755038]
[1748295210013,0.7853,2563.3,2562.3,0.46309911]
[1748295210204,0.7604,2563.1,2562.3,4.57064949]
[1748295210716,0.7604,2562.9,2562.3,4.10755038]
[1748295217117,0.7604,2562.9,2562.7,4.10755038]
[1748295219618,0.7502,2563.1,2562.7,4.51830542]
[1748295219803,0.7502,2563.1,2563.0,4.10755038]
[1748295219991,0.7502,2563.7,2563.0,4.10755038]
[1748295220888,0.7502,2563.7,2563.2,4.10755038]
[1748295232230,0.7502,2563.7,2563.4,4.10755038]
[1748295233601,0.7759,2563.9,2563.6,4.10755038]
[1748295238502,0.7759,2563.9,2563.7,0.01]
[1748295238702,0.7759,2563.9,2563.6,4.10755038]
[1748295243321,0.39899734,2564.7,2563.8,4.10755038]
[1748295243322,0.7611,2564.7,2563.8,4.10755038]
[1748295243527,0.7611,2564.7,2564.3,4.10755038]
[1748295248753,1.3739,2564.9,2564.3,4.10755038]
[1748295249131,1.3739,2564.9,2564.3,4.93655038]
[1748295252226,1.3739,2564.9,2564.3,0.829]
[1748295252421,0.6,2564.9,2564.5,4.10755038]
[1748295255025,0.6,2564.9,2564.6,0.7533]
[1748295256031,0.6,2564.9,2564.7,4.10755038]
[1748295257157,0.6,2564.9,2564.8,8.0]
[1748295257363,0.6,2564.9,2564.8,8.8199]
[1748295258926,0.6,2564.9,2564.8,9.20589595]
[1748295259128,0.9171,2565.9,2564.9,0.7559]
[1748295259324,0.9171,2565.9,2565.6,4.10755038]
[1748295259325,0.1,2565.9,2565.6,4.10755038]
[1748295260261,0.1,2565.9,2565.5,0.7559]
[1748295260466,0.1,2565.9,2565.5,4.86345038]
[1748295263452,0.1,2565.9,2565.7,4.10755038]
[1748295264351,0.1,2565.9,2565.8,8.0]
[1748295266381,0.1,2565.9,2565.1,4.133]
[1748295266382,0.1,2565.9,2564.9,5.1807385]
[1748295266683,0.9099,2565.9,2565.0,0.7514]
[1748295266841,0.9099,2565.9,2565.2,8.0]
[1748295267046,0.58059,2565.9,2565.2,8.0]
[1748295267376,0.7767,2565.8,2565.2,8.0]
[1748295267548,0.7767,2565.8,2565.1,4.10755038]
[1748295274398,0.7767,2565.8,2564.8,0.38599595]
[1748295274600,0.04872921,2565.7,2564.8,4.10755038]
[1748295274897,0.58059,2565.9,2564.6,0.7903]
[1748295274898,0.8146,2565.4,2564.6,4.10755038]
[1748295275301,0.8146,2565.2,2564.6,4.10755038]
[1748295281012,0.04873871,2565.1,2564.4,4.10755038]
[1748295281179,0.7829,2565.0,2564.4,4.10755038]
[1748295289197,0.7829,2565.0,2564.8,4.10755038]
[1748295289588,0.7829,2565.0,2564.6,4.10755038]
[1748295294797,0.7829,2565.0,2564.7,0.01]
[1748295295694,0.7829,2565.0,2564.6,4.10755038]
[1748295305040,0.7829,2565.0,2564.7,0.01]
[1748295305242,0.7829,2565.0,2564.7,0.02]
[1748295305638,0.7829,2565.0,2564.6,4.10755038]
[1748295305839,0.7829,2565.0,2564.7,8.0]
[1748295306220,1.346,2565.5,2564.7,8.0]
[1748295306421,0.796,2565.4,2564.7,8.0]
[1748295306803,0.796,2565.4,2565.0,4.10755038]
[1748295307326,0.796,2565.6,2565.2,4.10755038]
[1748295307526,0.46486742,2565.8,2565.3,8.0]
[1748295307527,1.26086742,2565.8,2565.3,8.0]
[1748295308110,0.796,2565.8,2565.3,8.0]
[1748295308805,0.796,2565.8,2565.4,4.10755038]
[1748295311224,4.228,2565.9,2565.4,4.11755038]
[1748295311546,0.1,2565.9,2565.4,4.11755038]
[1748295311913,0.1,2565.9,2565.4,4.10755038]
[1748295312251,0.1,2565.9,2565.7,8.0]
[1748295313725,0.1,2565.9,2565.5,4.94035038]
[1748295313926,0.1,2565.9,2565.4,8.0]
[1748295315946,0.7968,2565.7,2564.9,0.4607385]
[1748295316147,0.7968,2565.4,2564.9,0.4607385]
[1748295316355,0.84553496,2565.4,2564.9,0.4607385]
[1748295316519,0.84553496,2565.4,2564.6,8.0]
[1748295316843,0.55,2565.5,2564.5,4.49134768]
[1748295316844,0.7968,2565.2,2564.5,4.49134768]
[1748295317049,0.7968,2565.2,2564.5,0.3837973]
[1748295317245,0.7968,2565.2,2564.5,8.0]
[1748295317448,0.7968,2565.2,2564.6,1.9499329]
[1748295319349,0.7968,2565.2,2564.7,4.10755038]
[1748295319571,0.8112,2565.7,2564.9,4.10755038]
[1748295320262,0.8112,2565.7,2565.1,4.10755038]
[1748295320920,0.8112,2565.7,2565.2,8.0]
[1748295322713,0.8112,2565.7,2565.1,4.10755038]
[1748295322714,0.8112,2565.7,2565.3,4.10755038]
[1748295322921,0.1,2565.9,2565.5,4.10755038]
[1748295326061,0.1,2565.9,2565.3,4.10755038]
[1748295330363,0.7841,2565.8,2565.3,4.10755038]
[1748295331428,0.7841,2565.8,2565.2,8.0]
[1748295333635,0.7841,2565.8,2565.1,4.10755038]
[1748295337461,0.04872311,2565.7,2565.1,4.10755038]
[1748295337667,0.7799,2565.6,2565.1,4.10755038]
[1748295337968,0.7799,2565.6,2565.2,0.01]
[1748295338969,0.7799,2565.6,2565.1,4.10755038]
[1748295339331,0.7799,2565.6,2565.0,8.0]
[1748295339661,0.7799,2565.6,2564.9,8.23255038]
[1748295341359,0.7799,2565.6,2565.0,0.01]
[1748295341765,0.7799,2565.6,2564.9,4.10755038]
[1748295342356,0.7799,2565.6,2564.6,8.4607385]
[1748295342357,0.7799,2565.6,2565.1,4.10755038]